[Event "Late-Titled-Tuesday-Blitz-April-02-2024"]
[Site "Chess.com"]
[Date "2024.04.02"]
[Round "6"]
[White "ChempionBg"]
[Black "Sesleria"]
[Result "0-1"]
[WhiteElo "2247"]
[BlackElo "2158"]
[TimeControl "180+1"]
[EndTime "15:03:30 PDT"]
[Termination "Sesleria won on time"]

1. d4 {[%clk 0:02:45.5]} 1... Nf6 {[%clk 0:02:59.2]} 2. c4 {[%clk 0:02:45]} 2...
e6 {[%clk 0:02:59.5]} 3. Nf3 {[%clk 0:02:44.9]} 3... Bb4+ {[%clk 0:02:58.8]} 4.
Bd2 {[%clk 0:02:43.8]} 4... c5 {[%clk 0:02:58.8]} 5. g3 {[%clk 0:02:40.3]} 5...
Nc6 {[%clk 0:02:52.3]} 6. dxc5 {[%clk 0:02:36.1]} 6... Bxc5 {[%clk 0:02:46.2]}
7. Bg2 {[%clk 0:02:34.3]} 7... Ne4 {[%clk 0:02:41.4]} 8. O-O {[%clk 0:02:31.5]}
8... Nxd2 {[%clk 0:02:41.5]} 9. Nbxd2 {[%clk 0:02:26.7]} 9... O-O {[%clk
0:02:26.5]} 10. Ne4 {[%clk 0:02:25.7]} 10... Be7 {[%clk 0:02:22]} 11. Nd6 {[%clk
0:02:24.7]} 11... Qc7 {[%clk 0:02:03.4]} 12. c5 {[%clk 0:02:14.2]} 12... b6
{[%clk 0:02:02.9]} 13. b4 {[%clk 0:01:39.4]} 13... Nxb4 {[%clk 0:01:33.4]} 14.
Nd4 {[%clk 0:01:07]} 14... Rb8 {[%clk 0:01:00]} 15. N4b5 {[%clk 0:00:18.6]}
15... Qxc5 {[%clk 0:00:58.7]} 16. Rc1 {[%clk 0:00:18.4]} 16... Qe5 {[%clk
0:00:51.7]} 17. Nxc8 {[%clk 0:00:06.8]} 17... Rfxc8 {[%clk 0:00:44.6]} 18. Rxc8+
{[%clk 0:00:04.9]} 18... Rxc8 {[%clk 0:00:44.8]} 19. Qxd7 {[%clk 0:00:05.3]}
19... Rf8 {[%clk 0:00:36.7]} 20. Qxe7 {[%clk 0:00:04.5]} 20... Qxb5 {[%clk
0:00:36.8]} 21. Qxa7 {[%clk 0:00:03.9]} 21... Qxe2 {[%clk 0:00:24.4]} 22. a3
{[%clk 0:00:04]} 22... Qa2 {[%clk 0:00:16.7]} 23. Qxb6 {[%clk 0:00:02.2]} 23...
Qxa3 {[%clk 0:00:17]} 0-1

[Event "Late-Titled-Tuesday-Blitz-April-02-2024"]
[Site "Chess.com"]
[Date "2024.04.02"]
[Round "6"]
[White "Cuchulin"]
[Black "Manukyan_Artak"]
[Result "1-0"]
[WhiteElo "2158"]
[BlackElo "2507"]
[TimeControl "180+1"]
[EndTime "15:03:33 PDT"]
[Termination "Cuchulin won by resignation"]

1. d4 {[%clk 0:02:36.4]} 1... d5 {[%clk 0:02:57]} 2. Bf4 {[%clk 0:02:37.2]} 2...
Nf6 {[%clk 0:02:54.7]} 3. e3 {[%clk 0:02:37.2]} 3... Bg4 {[%clk 0:02:52.4]} 4.
Nf3 {[%clk 0:02:35.6]} 4... e6 {[%clk 0:02:52.4]} 5. Be2 {[%clk 0:02:34.4]} 5...
Bd6 {[%clk 0:02:51.1]} 6. Ne5 {[%clk 0:02:31.4]} 6... Bxe2 {[%clk 0:02:50.3]} 7.
Qxe2 {[%clk 0:02:32.3]} 7... O-O {[%clk 0:02:48.7]} 8. Nd2 {[%clk 0:02:30.9]}
8... c5 {[%clk 0:02:47.5]} 9. c3 {[%clk 0:02:30.4]} 9... Nc6 {[%clk 0:02:39.1]}
10. Bg3 {[%clk 0:02:25]} 10... Bxe5 {[%clk 0:02:30.2]} 11. Bxe5 {[%clk
0:02:21.4]} 11... Nxe5 {[%clk 0:02:29.3]} 12. dxe5 {[%clk 0:02:22.3]} 12... Nd7
{[%clk 0:02:29]} 13. f4 {[%clk 0:02:22.1]} 13... Qb6 {[%clk 0:02:20.4]} 14. Nf3
{[%clk 0:02:22]} 14... a5 {[%clk 0:02:13]} 15. O-O {[%clk 0:02:20.2]} 15... g6
{[%clk 0:02:04.9]} 16. h4 {[%clk 0:02:13]} 16... Qa6 {[%clk 0:02:00.2]} 17. Qf2
{[%clk 0:02:08.4]} 17... Qd3 {[%clk 0:01:55.7]} 18. Rad1 {[%clk 0:02:00.7]}
18... Qf5 {[%clk 0:01:54.5]} 19. Ng5 {[%clk 0:01:56.3]} 19... Rfd8 {[%clk
0:01:46.8]} 20. Qf3 {[%clk 0:01:54.9]} 20... Qc2 {[%clk 0:01:30.6]} 21. Rf2
{[%clk 0:01:51.7]} 21... Qa4 {[%clk 0:01:30]} 22. h5 {[%clk 0:01:46.1]} 22...
Nf8 {[%clk 0:01:25.5]} 23. g4 {[%clk 0:01:43.7]} 23... Qc6 {[%clk 0:00:58.2]}
24. Rh2 {[%clk 0:01:37.6]} 24... d4 {[%clk 0:00:54.1]} 25. Ne4 {[%clk
0:01:36.4]} 25... dxe3 {[%clk 0:00:50.3]} 26. Rxd8 {[%clk 0:01:33.3]} 26... Rxd8
{[%clk 0:00:48.8]} 27. Qxe3 {[%clk 0:01:20]} 27... Rd1+ {[%clk 0:00:40.7]} 28.
Kf2 {[%clk 0:01:18.7]} 28... Nd7 {[%clk 0:00:39.8]} 29. hxg6 {[%clk 0:01:16.9]}
29... fxg6 {[%clk 0:00:34.6]} 30. Ng5 {[%clk 0:00:53.8]} 30... Qd5 {[%clk
0:00:29.1]} 31. Ne4 {[%clk 0:00:53.8]} 31... c4 {[%clk 0:00:20.8]} 32. Ke2
{[%clk 0:00:38.8]} 32... Rb1 {[%clk 0:00:18.4]} 33. Kf3 {[%clk 0:00:37.2]} 33...
Rf1+ {[%clk 0:00:17.1]} 34. Rf2 {[%clk 0:00:36.8]} 34... Rxf2+ {[%clk
0:00:16.9]} 35. Kxf2 {[%clk 0:00:37.7]} 35... Qb5 {[%clk 0:00:15.3]} 36. Qd2
{[%clk 0:00:34.4]} 36... Kf7 {[%clk 0:00:13.8]} 37. Nd6+ {[%clk 0:00:32.2]}
37... Ke7 {[%clk 0:00:13.7]} 38. Nxb5 {[%clk 0:00:32.3]} 1-0

[Event "Late-Titled-Tuesday-Blitz-April-02-2024"]
[Site "Chess.com"]
[Date "2024.04.02"]
[Round "6"]
[White "Oleg_Papayan"]
[Black "moro182"]
[Result "0-1"]
[WhiteElo "2701"]
[BlackElo "2901"]
[TimeControl "180+1"]
[EndTime "15:03:38 PDT"]
[Termination "moro182 won by resignation"]

1. e4 {[%clk 0:03:00.9]} 1... g6 {[%clk 0:03:00.9]} 2. d4 {[%clk 0:03:00.5]}
2... Bg7 {[%clk 0:03:01.4]} 3. Nc3 {[%clk 0:03:01.4]} 3... a6 {[%clk 0:03:01.6]}
4. Be3 {[%clk 0:03:00.8]} 4... b5 {[%clk 0:03:01.9]} 5. a3 {[%clk 0:03:01.5]}
5... Bb7 {[%clk 0:03:01.9]} 6. Qd2 {[%clk 0:03:01.7]} 6... Nf6 {[%clk
0:03:01.9]} 7. f3 {[%clk 0:03:00.5]} 7... h5 {[%clk 0:02:58.9]} 8. Nge2 {[%clk
0:02:58.5]} 8... d6 {[%clk 0:02:58.5]} 9. O-O-O {[%clk 0:02:45.9]} 9... Nbd7
{[%clk 0:02:57.7]} 10. Kb1 {[%clk 0:02:38.3]} 10... Rc8 {[%clk 0:02:43.2]} 11.
Nf4 {[%clk 0:02:33.2]} 11... e6 {[%clk 0:02:26.8]} 12. e5 {[%clk 0:02:00.4]}
12... dxe5 {[%clk 0:02:16]} 13. dxe5 {[%clk 0:02:01.3]} 13... Nxe5 {[%clk
0:02:15]} 14. Qf2 {[%clk 0:01:57.1]} 14... Nfd7 {[%clk 0:02:06.2]} 15. Qg3
{[%clk 0:01:15]} 15... h4 {[%clk 0:02:00.2]} 16. Qe1 {[%clk 0:01:14.6]} 16...
Qe7 {[%clk 0:01:56.5]} 17. Be2 {[%clk 0:01:10.1]} 17... O-O {[%clk 0:01:51.7]}
18. Ne4 {[%clk 0:01:04.1]} 18... Bxe4 {[%clk 0:01:33.9]} 19. fxe4 {[%clk
0:01:05]} 19... Nc4 {[%clk 0:01:34.6]} 20. Bxc4 {[%clk 0:01:04.1]} 20... bxc4
{[%clk 0:01:35.5]} 21. Bd4 {[%clk 0:00:59.6]} 21... Bxd4 {[%clk 0:01:18.8]} 22.
Rxd4 {[%clk 0:00:59.5]} 22... Rb8 {[%clk 0:01:19.1]} 23. Qc3 {[%clk 0:00:57.9]}
23... Nb6 {[%clk 0:01:18]} 24. Qa5 {[%clk 0:00:46.4]} 24... Rb7 {[%clk
0:00:44.8]} 25. Rhd1 {[%clk 0:00:26.8]} 25... Rfb8 {[%clk 0:00:42.7]} 26. e5
{[%clk 0:00:25.8]} 26... Nd5 {[%clk 0:00:30.2]} 27. Nxd5 {[%clk 0:00:20.5]}
27... Rxb2+ {[%clk 0:00:30.1]} 28. Ka1 {[%clk 0:00:20.7]} 28... exd5 {[%clk
0:00:31]} 29. Rxd5 {[%clk 0:00:21.2]} 29... Rxc2 {[%clk 0:00:29.7]} 30. Rc5
{[%clk 0:00:06.7]} 30... Rb5 {[%clk 0:00:24.3]} 31. Rxb5 {[%clk 0:00:05.8]}
31... axb5 {[%clk 0:00:25.2]} 32. Qa8+ {[%clk 0:00:06]} 32... Kg7 {[%clk
0:00:24.7]} 33. Qe4 {[%clk 0:00:06.9]} 33... Qxa3+ {[%clk 0:00:23.8]} 0-1

[Event "Late-Titled-Tuesday-Blitz-April-02-2024"]
[Site "Chess.com"]
[Date "2024.04.02"]
[Round "6"]
[White "shirovin"]
[Black "KorolDimitriy75"]
[Result "0-1"]
[WhiteElo "2061"]
[BlackElo "2354"]
[TimeControl "180+1"]
[EndTime "15:03:39 PDT"]
[Termination "KorolDimitriy75 won on time"]

1. d4 {[%clk 0:03:00.9]} 1... Nf6 {[%clk 0:02:59.8]} 2. Bf4 {[%clk 0:02:57.8]}
2... c5 {[%clk 0:02:59.8]} 3. d5 {[%clk 0:02:56.4]} 3... Qb6 {[%clk 0:02:58.4]}
4. Nc3 {[%clk 0:02:47.6]} 4... Qxb2 {[%clk 0:02:57.7]} 5. Bd2 {[%clk 0:02:47.3]}
5... Qb6 {[%clk 0:02:56.7]} 6. Rb1 {[%clk 0:02:44.7]} 6... Qd8 {[%clk
0:02:55.2]} 7. e4 {[%clk 0:02:45.2]} 7... d6 {[%clk 0:02:55.7]} 8. f4 {[%clk
0:02:44.8]} 8... g6 {[%clk 0:02:55.5]} 9. Nf3 {[%clk 0:02:44.3]} 9... Bg7 {[%clk
0:02:55.5]} 10. Bc4 {[%clk 0:02:42.5]} 10... O-O {[%clk 0:02:55.4]} 11. O-O
{[%clk 0:02:41.2]} 11... Nbd7 {[%clk 0:02:46.2]} 12. e5 {[%clk 0:02:31.8]} 12...
Ne8 {[%clk 0:02:29.2]} 13. e6 {[%clk 0:02:22.9]} 13... fxe6 {[%clk 0:02:26.8]}
14. Ng5 {[%clk 0:02:02.4]} 14... Nb6 {[%clk 0:02:24.5]} 15. Bb3 {[%clk
0:01:20.2]} 15... c4 {[%clk 0:02:19.9]} 16. Ba4 {[%clk 0:01:19.1]} 16... exd5
{[%clk 0:01:38.4]} 17. Re1 {[%clk 0:01:05.7]} 17... d4 {[%clk 0:01:33.6]} 18.
Bxe8 {[%clk 0:01:00.1]} 18... dxc3 {[%clk 0:01:33.5]} 19. Be3 {[%clk 0:00:52.2]}
19... Rxe8 {[%clk 0:01:15.8]} 20. Bd4 {[%clk 0:00:36.8]} 20... e6 {[%clk
0:00:28.4]} 21. Bxg7 {[%clk 0:00:33.1]} 21... Kxg7 {[%clk 0:00:29.3]} 22. Qd4+
{[%clk 0:00:32.6]} 22... e5 {[%clk 0:00:21.9]} 23. Qxc3 {[%clk 0:00:28.4]} 23...
Qf6 {[%clk 0:00:17.9]} 24. Ne4 {[%clk 0:00:16.4]} 24... Qxf4 {[%clk 0:00:17.9]}
25. Nxd6 {[%clk 0:00:15.7]} 25... Re6 {[%clk 0:00:16.7]} 26. Ne4 {[%clk
0:00:12.3]} 26... Bd7 {[%clk 0:00:15]} 27. Nc5 {[%clk 0:00:10.2]} 27... Re7
{[%clk 0:00:14.4]} 28. Rbd1 {[%clk 0:00:09]} 28... Bc6 {[%clk 0:00:13.6]} 29.
Rd6 {[%clk 0:00:02]} 29... Rf8 {[%clk 0:00:12.9]} 0-1

[Event "Late-Titled-Tuesday-Blitz-April-02-2024"]
[Site "Chess.com"]
[Date "2024.04.02"]
[Round "6"]
[White "carlsenCamacho"]
[Black "BillCoe"]
[Result "0-1"]
[WhiteElo "2271"]
[BlackElo "2125"]
[TimeControl "180+1"]
[EndTime "15:03:40 PDT"]
[Termination "BillCoe won on time"]

1. e4 {[%clk 0:03:00.3]} 1... c5 {[%clk 0:03:00.1]} 2. Nf3 {[%clk 0:02:59.7]}
2... e6 {[%clk 0:03:00.6]} 3. d3 {[%clk 0:02:59.4]} 3... Nc6 {[%clk 0:02:59.9]}
4. Nbd2 {[%clk 0:03:00.3]} 4... g6 {[%clk 0:02:59.5]} 5. g3 {[%clk 0:03:00.5]}
5... Bg7 {[%clk 0:02:59.5]} 6. Bg2 {[%clk 0:03:01.4]} 6... Nge7 {[%clk
0:02:58.9]} 7. O-O {[%clk 0:03:02.3]} 7... O-O {[%clk 0:02:57.7]} 8. Re1 {[%clk
0:02:53.5]} 8... d5 {[%clk 0:02:57.1]} 9. c3 {[%clk 0:02:50.9]} 9... b6 {[%clk
0:02:51.9]} 10. a4 {[%clk 0:02:33.6]} 10... Bb7 {[%clk 0:02:51.3]} 11. Qe2
{[%clk 0:02:33.1]} 11... dxe4 {[%clk 0:02:39.3]} 12. dxe4 {[%clk 0:02:31.6]}
12... Ne5 {[%clk 0:02:37.3]} 13. Nxe5 {[%clk 0:02:29.8]} 13... Bxe5 {[%clk
0:02:38.2]} 14. f4 {[%clk 0:02:29.4]} 14... Bg7 {[%clk 0:02:38.5]} 15. Nf3
{[%clk 0:02:25]} 15... Qc7 {[%clk 0:02:34.1]} 16. Bd2 {[%clk 0:02:17.3]} 16...
a6 {[%clk 0:02:33.8]} 17. Rad1 {[%clk 0:02:17.3]} 17... Bc6 {[%clk 0:02:33.4]}
18. a5 {[%clk 0:02:14.5]} 18... b5 {[%clk 0:02:31.1]} 19. b4 {[%clk 0:02:09.2]}
19... c4 {[%clk 0:02:30.6]} 20. Nd4 {[%clk 0:02:04.3]} 20... Bb7 {[%clk
0:02:28.5]} 21. Be3 {[%clk 0:01:58.6]} 21... Nc6 {[%clk 0:02:17.8]} 22. e5
{[%clk 0:01:30.5]} 22... Nxd4 {[%clk 0:02:16.8]} 23. Rxd4 {[%clk 0:01:30.8]}
23... Bxg2 {[%clk 0:02:16]} 24. Kxg2 {[%clk 0:01:25.8]} 24... Rfd8 {[%clk
0:02:08.1]} 25. Red1 {[%clk 0:01:24.5]} 25... Rxd4 {[%clk 0:02:05.9]} 26. Bxd4
{[%clk 0:01:21.2]} 26... Bf8 {[%clk 0:02:02.3]} 27. Qe4 {[%clk 0:01:17.7]} 27...
Rc8 {[%clk 0:02:02]} 28. Bb6 {[%clk 0:01:12.3]} 28... Qe7 {[%clk 0:01:46.2]} 29.
Kf3 {[%clk 0:01:11.1]} 29... h5 {[%clk 0:01:45.6]} 30. h4 {[%clk 0:01:10.3]}
30... Qe8 {[%clk 0:01:38.1]} 31. Qb7 {[%clk 0:01:01.7]} 31... Ra8 {[%clk
0:01:35.7]} 32. Rd7 {[%clk 0:00:57.7]} 32... Bh6 {[%clk 0:01:28.1]} 33. Ke4
{[%clk 0:00:55.5]} 33... Bf8 {[%clk 0:01:22]} 34. Qc7 {[%clk 0:00:48.2]} 34...
Rc8 {[%clk 0:01:20.2]} 35. Qb7 {[%clk 0:00:38.2]} 35... Ra8 {[%clk 0:01:19.7]}
36. Qc7 {[%clk 0:00:32.8]} 36... Rc8 {[%clk 0:01:19]} 37. Rd8 {[%clk 0:00:32.8]}
37... Rxd8 {[%clk 0:01:18.5]} 38. Qxd8 {[%clk 0:00:32.4]} 38... Qc6+ {[%clk
0:01:16.7]} 39. Ke3 {[%clk 0:00:30.4]} 39... Qg2 {[%clk 0:01:14.9]} 40. Qd2
{[%clk 0:00:14.7]} 40... Qxg3+ {[%clk 0:01:14.4]} 41. Kd4 {[%clk 0:00:14.9]}
41... Qg1+ {[%clk 0:01:02]} 42. Ke4 {[%clk 0:00:13.2]} 42... Qh1+ {[%clk
0:00:56.3]} 43. Ke3 {[%clk 0:00:10.4]} 43... Qxh4 {[%clk 0:00:55.4]} 44. Bc5
{[%clk 0:00:04.8]} 44... Bh6 {[%clk 0:00:51.4]} 45. Ke4 {[%clk 0:00:01.9]} 45...
Qh1+ {[%clk 0:00:49.5]} 0-1

[Event "Late-Titled-Tuesday-Blitz-April-02-2024"]
[Site "Chess.com"]
[Date "2024.04.02"]
[Round "6"]
[White "Quattroporte300"]
[Black "yaguigor"]
[Result "0-1"]
[WhiteElo "2489"]
[BlackElo "2620"]
[TimeControl "180+1"]
[EndTime "15:03:42 PDT"]
[Termination "yaguigor won by resignation"]

1. e4 {[%clk 0:03:00.9]} 1... e5 {[%clk 0:02:59.1]} 2. Nf3 {[%clk 0:03:00.2]}
2... Nc6 {[%clk 0:02:58.4]} 3. d4 {[%clk 0:03:00.5]} 3... exd4 {[%clk
0:02:57.6]} 4. Nxd4 {[%clk 0:03:01.4]} 4... Nf6 {[%clk 0:02:55.9]} 5. Nxc6
{[%clk 0:03:01.6]} 5... bxc6 {[%clk 0:02:55]} 6. e5 {[%clk 0:03:01.8]} 6... Qe7
{[%clk 0:02:54.7]} 7. Qe2 {[%clk 0:03:02.2]} 7... Nd5 {[%clk 0:02:55.3]} 8. c4
{[%clk 0:03:01.5]} 8... Ba6 {[%clk 0:02:54.7]} 9. b3 {[%clk 0:03:01]} 9... g6
{[%clk 0:02:53.5]} 10. g3 {[%clk 0:03:00.2]} 10... Bg7 {[%clk 0:02:52.8]} 11.
Bb2 {[%clk 0:03:00.8]} 11... O-O {[%clk 0:02:52.8]} 12. Bg2 {[%clk 0:03:01.5]}
12... Rae8 {[%clk 0:02:51.7]} 13. O-O {[%clk 0:03:01.8]} 13... Bxe5 {[%clk
0:02:50.6]} 14. Bxe5 {[%clk 0:03:01.4]} 14... Qxe5 {[%clk 0:02:50.8]} 15. Qxe5
{[%clk 0:03:02.1]} 15... Rxe5 {[%clk 0:02:51]} 16. cxd5 {[%clk 0:03:02.8]} 16...
Bxf1 {[%clk 0:02:51.2]} 17. Kxf1 {[%clk 0:02:58.6]} 17... cxd5 {[%clk 0:02:47]}
18. Nc3 {[%clk 0:02:57.7]} 18... c6 {[%clk 0:02:47.5]} 19. Rd1 {[%clk
0:02:56.9]} 19... Rfe8 {[%clk 0:02:44.5]} 20. Bf3 {[%clk 0:02:54]} 20... Rf5
{[%clk 0:02:36.4]} 21. Kg2 {[%clk 0:02:52.2]} 21... Rfe5 {[%clk 0:02:36.1]} 22.
Rd4 {[%clk 0:02:50.3]} 22... Re1 {[%clk 0:02:19.9]} 23. Ra4 {[%clk 0:02:49.2]}
23... Rc1 {[%clk 0:02:19.6]} 24. Ne2 {[%clk 0:02:43]} 24... Rc2 {[%clk
0:02:15.2]} 25. Nf4 {[%clk 0:01:57.8]} 25... Ra8 {[%clk 0:02:12.3]} 26. Ra6
{[%clk 0:01:47.6]} 26... Kf8 {[%clk 0:02:09.3]} 27. h4 {[%clk 0:01:38.8]} 27...
Ke7 {[%clk 0:02:08.1]} 28. Nd3 {[%clk 0:01:37.6]} 28... Kd6 {[%clk 0:02:01.1]}
29. g4 {[%clk 0:01:34.2]} 29... Rd2 {[%clk 0:01:56.3]} 30. Nf4 {[%clk
0:01:25.5]} 30... Kc5 {[%clk 0:01:54.9]} 31. Kg3 {[%clk 0:01:18.1]} 31... Kb5
{[%clk 0:01:53.4]} 32. Ra4 {[%clk 0:01:17.3]} 32... a5 {[%clk 0:01:51]} 33. Be2+
{[%clk 0:01:16.2]} 33... Kb6 {[%clk 0:01:50.7]} 34. b4 {[%clk 0:00:48.9]} 34...
Ra7 {[%clk 0:01:46.5]} 35. Kf3 {[%clk 0:00:37.6]} 35... axb4 {[%clk 0:01:42.1]}
36. Rxb4+ {[%clk 0:00:37.8]} 36... Kc5 {[%clk 0:01:38.4]} 37. Rb8 {[%clk
0:00:27.6]} 37... Ra3+ {[%clk 0:01:37.1]} 38. Nd3+ {[%clk 0:00:16.6]} 38...
Rdxd3+ {[%clk 0:01:24.9]} 39. Bxd3 {[%clk 0:00:16.7]} 39... Rxd3+ {[%clk
0:01:25.3]} 40. Kf4 {[%clk 0:00:10.8]} 40... Rd2 {[%clk 0:01:21]} 41. f3 {[%clk
0:00:09.3]} 41... d4 {[%clk 0:01:17.3]} 42. Rf8 {[%clk 0:00:07.8]} 42... Rxa2
{[%clk 0:01:14.6]} 43. Rxf7 {[%clk 0:00:08.3]} 43... d5 {[%clk 0:01:13.9]} 44.
Rxh7 {[%clk 0:00:07.8]} 44... d3 {[%clk 0:01:12.2]} 45. Ke3 {[%clk 0:00:04.9]}
45... Kc4 {[%clk 0:01:12.5]} 46. Rb7 {[%clk 0:00:04.9]} 46... Re2+ {[%clk
0:01:12.3]} 47. Kf4 {[%clk 0:00:05.5]} 47... Re1 {[%clk 0:01:11.7]} 48. Rb2
{[%clk 0:00:05.4]} 48... Kc3 {[%clk 0:01:10.6]} 49. Rh2 {[%clk 0:00:05.9]} 49...
d2 {[%clk 0:01:10.3]} 50. Rxd2 {[%clk 0:00:06.6]} 50... Kxd2 {[%clk 0:01:10.2]}
51. h5 {[%clk 0:00:06.5]} 51... gxh5 {[%clk 0:01:09.3]} 52. gxh5 {[%clk
0:00:06.9]} 52... Rh1 {[%clk 0:01:08.8]} 53. Kg5 {[%clk 0:00:06.9]} 53... Ke3
{[%clk 0:01:09.1]} 0-1

[Event "Late-Titled-Tuesday-Blitz-April-02-2024"]
[Site "Chess.com"]
[Date "2024.04.02"]
[Round "6"]
[White "Groetzi"]
[Black "Tugrik1969"]
[Result "0-1"]
[WhiteElo "2365"]
[BlackElo "2549"]
[TimeControl "180+1"]
[EndTime "15:03:45 PDT"]
[Termination "Tugrik1969 won by checkmate"]

1. e4 {[%clk 0:03:00.9]} 1... c5 {[%clk 0:03:00]} 2. Nf3 {[%clk 0:03:00.4]} 2...
d6 {[%clk 0:03:00.5]} 3. d4 {[%clk 0:02:58.7]} 3... cxd4 {[%clk 0:03:01]} 4.
Nxd4 {[%clk 0:02:59.6]} 4... Nf6 {[%clk 0:03:01.6]} 5. f3 {[%clk 0:02:59.7]}
5... e5 {[%clk 0:02:57.6]} 6. Bb5+ {[%clk 0:02:57.3]} 6... Nbd7 {[%clk
0:02:56.5]} 7. Nf5 {[%clk 0:02:53.9]} 7... Qc7 {[%clk 0:02:30.9]} 8. Nc3 {[%clk
0:02:46.2]} 8... a6 {[%clk 0:02:25.5]} 9. Ba4 {[%clk 0:02:43.7]} 9... b5 {[%clk
0:02:20.6]} 10. Bb3 {[%clk 0:02:43.3]} 10... Nb6 {[%clk 0:02:07.7]} 11. Bg5
{[%clk 0:02:39.9]} 11... Bxf5 {[%clk 0:02:02.3]} 12. exf5 {[%clk 0:02:34.2]}
12... Be7 {[%clk 0:01:54.3]} 13. Bxf6 {[%clk 0:02:30.4]} 13... Bxf6 {[%clk
0:01:53.6]} 14. Nd5 {[%clk 0:02:30.8]} 14... Nxd5 {[%clk 0:01:50.8]} 15. Qxd5
{[%clk 0:02:31.7]} 15... O-O {[%clk 0:01:47.7]} 16. O-O-O {[%clk 0:02:17.8]}
16... Rfd8 {[%clk 0:01:30.6]} 17. h4 {[%clk 0:02:15.6]} 17... a5 {[%clk
0:01:28]} 18. a3 {[%clk 0:02:00.3]} 18... a4 {[%clk 0:01:21.3]} 19. Ba2 {[%clk
0:01:59.1]} 19... Rab8 {[%clk 0:01:16.3]} 20. g4 {[%clk 0:01:50.5]} 20... e4
{[%clk 0:01:12.4]} 21. g5 {[%clk 0:01:47.5]} 21... Be5 {[%clk 0:01:12.3]} 22. g6
{[%clk 0:01:47.3]} 22... b4 {[%clk 0:01:00]} 23. Qxf7+ {[%clk 0:01:28.5]} 23...
Qxf7 {[%clk 0:00:59.2]} 24. Bxf7+ {[%clk 0:01:29.4]} 24... Kf8 {[%clk
0:00:56.2]} 25. axb4 {[%clk 0:01:24.1]} 25... Rxb4 {[%clk 0:00:45.8]} 26. c3
{[%clk 0:01:24.5]} 26... Rb6 {[%clk 0:00:41.3]} 27. fxe4 {[%clk 0:01:21.2]}
27... Rdb8 {[%clk 0:00:35.5]} 28. Bd5 {[%clk 0:00:28.9]} 28... h6 {[%clk
0:00:32.7]} 29. Kd2 {[%clk 0:00:27.7]} 29... Rxb2+ {[%clk 0:00:32.3]} 30. Kd3
{[%clk 0:00:28]} 30... Rc8 {[%clk 0:00:28]} 31. Rc1 {[%clk 0:00:28]} 31... a3
{[%clk 0:00:27]} 32. Rhf1 {[%clk 0:00:21.3]} 32... Rc5 {[%clk 0:00:25.4]} 33. c4
{[%clk 0:00:15.3]} 33... a2 {[%clk 0:00:22.1]} 34. Ra1 {[%clk 0:00:15.1]} 34...
Rh2 {[%clk 0:00:20.3]} 35. Rac1 {[%clk 0:00:11]} 35... Ra5 {[%clk 0:00:19.7]}
36. Ra1 {[%clk 0:00:11.6]} 36... Ra3# {[%clk 0:00:19.7]} 0-1

[Event "Late-Titled-Tuesday-Blitz-April-02-2024"]
[Site "Chess.com"]
[Date "2024.04.02"]
[Round "6"]
[White "jinxy2009"]
[Black "Savagelittlemole"]
[Result "0-1"]
[WhiteElo "2294"]
[BlackElo "2499"]
[TimeControl "180+1"]
[EndTime "15:03:46 PDT"]
[Termination "Savagelittlemole won by checkmate"]

1. e4 {[%clk 0:03:00.9]} 1... c5 {[%clk 0:02:58]} 2. Nf3 {[%clk 0:03:00.5]} 2...
d6 {[%clk 0:02:57.6]} 3. d4 {[%clk 0:03:00.7]} 3... cxd4 {[%clk 0:02:58.5]} 4.
Nxd4 {[%clk 0:03:01.4]} 4... Nf6 {[%clk 0:02:59.4]} 5. Nc3 {[%clk 0:03:01.5]}
5... a6 {[%clk 0:03:00.1]} 6. Rg1 {[%clk 0:02:58.9]} 6... e5 {[%clk 0:02:58.7]}
7. Nb3 {[%clk 0:02:58.9]} 7... b5 {[%clk 0:02:58]} 8. a4 {[%clk 0:02:41]} 8...
b4 {[%clk 0:02:57.6]} 9. Nd5 {[%clk 0:02:41.5]} 9... Nxd5 {[%clk 0:02:57.7]} 10.
exd5 {[%clk 0:02:39.2]} 10... Be7 {[%clk 0:02:54.5]} 11. Bd3 {[%clk 0:02:38.5]}
11... Bg5 {[%clk 0:02:51.5]} 12. Bxg5 {[%clk 0:02:30.5]} 12... Qxg5 {[%clk
0:02:52.4]} 13. Qe2 {[%clk 0:02:23.5]} 13... Nd7 {[%clk 0:02:45]} 14. h4 {[%clk
0:02:08.2]} 14... Qxh4 {[%clk 0:02:39.6]} 15. O-O-O {[%clk 0:02:06.7]} 15... Nf6
{[%clk 0:02:38.7]} 16. Kb1 {[%clk 0:01:55.6]} 16... Qg4 {[%clk 0:02:31.6]} 17.
f3 {[%clk 0:01:51.8]} 17... Qg3 {[%clk 0:02:31.2]} 18. Rh1 {[%clk 0:01:45.9]}
18... h5 {[%clk 0:02:27.3]} 19. Nd2 {[%clk 0:01:41.2]} 19... h4 {[%clk
0:02:23.2]} 20. Nf1 {[%clk 0:01:31]} 20... Qg5 {[%clk 0:02:21.8]} 21. g3 {[%clk
0:01:22.7]} 21... h3 {[%clk 0:02:17.6]} 22. f4 {[%clk 0:01:19.9]} 22... Qg4
{[%clk 0:02:15.5]} 23. Qd2 {[%clk 0:01:18.2]} 23... exf4 {[%clk 0:02:05.9]} 24.
gxf4 {[%clk 0:01:11.8]} 24... a5 {[%clk 0:02:02.2]} 25. Re1+ {[%clk 0:00:59.6]}
25... Kf8 {[%clk 0:02:01.7]} 26. Nh2 {[%clk 0:00:47.3]} 26... Qg2 {[%clk
0:01:58.2]} 27. Qd1 {[%clk 0:00:43.9]} 27... Qxd5 {[%clk 0:01:50.5]} 28. Rhg1
{[%clk 0:00:39.1]} 28... Bf5 {[%clk 0:01:46.2]} 29. Rg5 {[%clk 0:00:38.6]} 29...
g6 {[%clk 0:01:42]} 30. Qc1 {[%clk 0:00:20.6]} 30... Rh5 {[%clk 0:01:35.8]} 31.
Bxf5 {[%clk 0:00:20.4]} 31... gxf5 {[%clk 0:01:29.7]} 32. Re3 {[%clk 0:00:14]}
32... Re8 {[%clk 0:01:09.3]} 33. Rxh5 {[%clk 0:00:08.7]} 33... Nxh5 {[%clk
0:01:10.2]} 34. Rxh3 {[%clk 0:00:09]} 34... Nf6 {[%clk 0:01:06.6]} 35. Nf3
{[%clk 0:00:05.4]} 35... Re2 {[%clk 0:00:51.2]} 36. Ng5 {[%clk 0:00:05.3]} 36...
Qg2 {[%clk 0:00:41.1]} 37. Rh6 {[%clk 0:00:05.4]} 37... Qf2 {[%clk 0:00:32]} 38.
Rxf6 {[%clk 0:00:04.5]} 38... Re1 {[%clk 0:00:32.5]} 39. Rxf7+ {[%clk 0:00:04]}
39... Ke8 {[%clk 0:00:28.5]} 40. Rxf5 {[%clk 0:00:04]} 40... Rxc1+ {[%clk
0:00:28.3]} 41. Kxc1 {[%clk 0:00:04.7]} 41... Qe1# {[%clk 0:00:28.5]} 0-1